[Event "Early-Titled-Tuesday-Blitz-March-12-2024"]
[Site "Chess.com"]
[Date "2024.03.12"]
[Round "2"]
[White "tomobeast"]
[Black "Cryptinz"]
[Result "0-1"]
[WhiteElo "2217"]
[BlackElo "2517"]
[TimeControl "180+1"]
[EndTime "8:17:34 PDT"]
[Termination "Cryptinz won by resignation"]

1. e4 {[%clk 0:03:00.9]} 1... e5 {[%clk 0:02:57.8]} 2. Nf3 {[%clk 0:03:00.8]}
2... Nc6 {[%clk 0:02:50.3]} 3. Bb5 {[%clk 0:03:00.5]} 3... a6 {[%clk 0:02:50]}
4. Bxc6 {[%clk 0:02:54.4]} 4... dxc6 {[%clk 0:02:50.9]} 5. O-O {[%clk
0:02:54.4]} 5... f6 {[%clk 0:02:50.3]} 6. d4 {[%clk 0:02:52.8]} 6... exd4 {[%clk
0:02:51.2]} 7. Nxd4 {[%clk 0:02:53.4]} 7... c5 {[%clk 0:02:50.5]} 8. Nb3 {[%clk
0:02:54]} 8... Qxd1 {[%clk 0:02:49.3]} 9. Rxd1 {[%clk 0:02:54.9]} 9... Bg4
{[%clk 0:02:49.3]} 10. f3 {[%clk 0:02:54.7]} 10... Be6 {[%clk 0:02:46.8]} 11.
Nc3 {[%clk 0:02:46.6]} 11... Bd6 {[%clk 0:02:41.6]} 12. Be3 {[%clk 0:02:46.4]}
12... b6 {[%clk 0:02:39.1]} 13. a4 {[%clk 0:02:46.1]} 13... O-O-O {[%clk
0:02:27.7]} 14. a5 {[%clk 0:02:42.8]} 14... Kb7 {[%clk 0:02:22.7]} 15. Rd2
{[%clk 0:02:28.6]} 15... Ne7 {[%clk 0:02:13.5]} 16. Rad1 {[%clk 0:02:27.9]}
16... Bxb3 {[%clk 0:01:55.1]} 17. cxb3 {[%clk 0:02:27.4]} 17... b5 {[%clk
0:01:55]} 18. e5 {[%clk 0:02:10.6]} 18... fxe5 {[%clk 0:01:52.5]} 19. Ne4 {[%clk
0:02:10.2]} 19... Nf5 {[%clk 0:01:43.3]} 20. Bxc5 {[%clk 0:01:54.2]} 20... Kc6
{[%clk 0:01:31.9]} 21. b4 {[%clk 0:01:34.3]} 21... Rd7 {[%clk 0:01:20]} 22. g4
{[%clk 0:01:28.5]} 22... Bxc5+ {[%clk 0:01:15.7]} 23. Nxc5 {[%clk 0:01:27.8]}
23... Rxd2 {[%clk 0:01:15.1]} 24. Rxd2 {[%clk 0:01:28.5]} 24... Nd4 {[%clk
0:01:16]} 25. Kf2 {[%clk 0:01:25.2]} 25... Rf8 {[%clk 0:01:12.8]} 26. Rd3 {[%clk
0:01:25.5]} 26... Ra8 {[%clk 0:00:35.5]} 27. Ke3 {[%clk 0:01:22.4]} 27... Rf8
{[%clk 0:00:34.6]} 28. Ke4 {[%clk 0:01:17.5]} 28... Kd6 {[%clk 0:00:21.1]} 29.
Rxd4+ {[%clk 0:00:58]} 29... exd4 {[%clk 0:00:20.9]} 30. Nxa6 {[%clk 0:00:58.9]}
30... d3 {[%clk 0:00:16.6]} 31. Kxd3 {[%clk 0:00:54.7]} 31... Rxf3+ {[%clk
0:00:17.2]} 32. Ke4 {[%clk 0:00:54.7]} 32... Rb3 {[%clk 0:00:16.7]} 33. Kf5
{[%clk 0:00:47.2]} 33... Rxb2 {[%clk 0:00:16.7]} 34. g5 {[%clk 0:00:43]} 34...
Rf2+ {[%clk 0:00:16.2]} 35. Ke4 {[%clk 0:00:42.8]} 35... Rxh2 {[%clk 0:00:16.2]}
36. Nc5 {[%clk 0:00:42.3]} 36... Rh4+ {[%clk 0:00:16.7]} 37. Ke3 {[%clk
0:00:39]} 37... Rxb4 {[%clk 0:00:17.6]} 38. Ne4+ {[%clk 0:00:36.6]} 38... Rxe4+
{[%clk 0:00:17]} 39. Kxe4 {[%clk 0:00:37.5]} 39... b4 {[%clk 0:00:16.8]} 40. Kd4
{[%clk 0:00:37.8]} 40... c5+ {[%clk 0:00:16.4]} 41. Kc4 {[%clk 0:00:38]} 41...
Kc6 {[%clk 0:00:17]} 42. a6 {[%clk 0:00:37.4]} 42... h5 {[%clk 0:00:17.1]} 43.
gxh6 {[%clk 0:00:35.8]} 43... gxh6 {[%clk 0:00:18]} 44. a7 {[%clk 0:00:29.4]}
44... Kb7 {[%clk 0:00:18.5]} 45. Kxc5 {[%clk 0:00:30.2]} 45... b3 {[%clk
0:00:18.6]} 46. Kb4 {[%clk 0:00:31.1]} 46... b2 {[%clk 0:00:19.1]} 47. a8=Q+
{[%clk 0:00:30.5]} 47... Kxa8 {[%clk 0:00:18.9]} 48. Kc3 {[%clk 0:00:31.4]}
48... b1=Q {[%clk 0:00:19.1]} 0-1

[Event "Early-Titled-Tuesday-Blitz-March-12-2024"]
[Site "Chess.com"]
[Date "2024.03.12"]
[Round "2"]
[White "Javylavilla"]
[Black "laziestwin"]
[Result "0-1"]
[WhiteElo "2353"]
[BlackElo "2573"]
[TimeControl "180+1"]
[EndTime "8:17:35 PDT"]
[Termination "laziestwin won by checkmate"]

1. e4 {[%clk 0:03:00.9]} 1... c5 {[%clk 0:02:59.8]} 2. Nf3 {[%clk 0:02:59.7]}
2... e6 {[%clk 0:02:57.2]} 3. d4 {[%clk 0:02:59]} 3... cxd4 {[%clk 0:02:57]} 4.
Nxd4 {[%clk 0:02:59.9]} 4... a6 {[%clk 0:02:57.2]} 5. Bd3 {[%clk 0:02:58.8]}
5... b5 {[%clk 0:02:54]} 6. O-O {[%clk 0:02:53.6]} 6... Bb7 {[%clk 0:02:54.1]}
7. Qe2 {[%clk 0:02:52.9]} 7... Nc6 {[%clk 0:02:51.6]} 8. Nxc6 {[%clk 0:02:40.8]}
8... Bxc6 {[%clk 0:02:51.5]} 9. a4 {[%clk 0:02:41.3]} 9... bxa4 {[%clk 0:02:51]}
10. Nc3 {[%clk 0:02:41]} 10... a3 {[%clk 0:02:50.1]} 11. bxa3 {[%clk 0:02:40.3]}
11... Bc5 {[%clk 0:02:43.3]} 12. Bxa6 {[%clk 0:02:37.5]} 12... Qa5 {[%clk
0:02:40.3]} 13. Nb5 {[%clk 0:02:24.5]} 13... Rxa6 {[%clk 0:02:16.7]} 14. Nc7+
{[%clk 0:02:24]} 14... Qxc7 {[%clk 0:02:17.4]} 15. Qxa6 {[%clk 0:02:24.2]} 15...
Bxe4 {[%clk 0:01:34.3]} 16. Bf4 {[%clk 0:02:23.4]} 16... Qxf4 {[%clk 0:00:53.2]}
17. Qc8+ {[%clk 0:02:21.5]} 17... Ke7 {[%clk 0:00:53.9]} 18. Qxc5+ {[%clk
0:02:21.5]} 18... Qd6 {[%clk 0:00:54.7]} 19. Qg5+ {[%clk 0:02:19.8]} 19... Nf6
{[%clk 0:00:55]} 20. c4 {[%clk 0:02:15.3]} 20... h6 {[%clk 0:00:46.9]} 21. Qg3
{[%clk 0:01:57.5]} 21... Qxg3 {[%clk 0:00:46.2]} 22. hxg3 {[%clk 0:01:58.4]}
22... Rc8 {[%clk 0:00:43.9]} 23. Rfc1 {[%clk 0:01:57.9]} 23... Bd3 {[%clk
0:00:34.8]} 24. c5 {[%clk 0:01:57.4]} 24... Ne4 {[%clk 0:00:34.3]} 25. a4 {[%clk
0:01:54.8]} 25... Rxc5 {[%clk 0:00:32.9]} 26. a5 {[%clk 0:01:52.2]} 26... d6
{[%clk 0:00:19.3]} 27. Rd1 {[%clk 0:01:47.9]} 27... Ba6 {[%clk 0:00:17.2]} 28.
Rdb1 {[%clk 0:01:47.9]} 28... Rc7 {[%clk 0:00:16.4]} 29. Rb6 {[%clk 0:01:47.7]}
29... Nc5 {[%clk 0:00:16.9]} 30. f3 {[%clk 0:01:45.8]} 30... d5 {[%clk
0:00:16.1]} 31. Kf2 {[%clk 0:01:45.7]} 31... d4 {[%clk 0:00:16.1]} 32. Ke1
{[%clk 0:01:39.9]} 32... Rb7 {[%clk 0:00:14.1]} 33. Rab1 {[%clk 0:01:31]} 33...
Rxb6 {[%clk 0:00:12.7]} 34. Rxb6 {[%clk 0:01:30.3]} 34... Kd7 {[%clk 0:00:10.9]}
35. Kd2 {[%clk 0:01:30.6]} 35... Kc7 {[%clk 0:00:11]} 36. Rb4 {[%clk 0:01:27.6]}
36... e5 {[%clk 0:00:10.4]} 37. f4 {[%clk 0:01:26.4]} 37... e4 {[%clk
0:00:07.6]} 38. Kc2 {[%clk 0:01:23.7]} 38... d3+ {[%clk 0:00:04.6]} 39. Kd2
{[%clk 0:01:24]} 39... Kc6 {[%clk 0:00:04.9]} 40. Rb6+ {[%clk 0:01:22.1]} 40...
Kd5 {[%clk 0:00:04.9]} 41. Rb8 {[%clk 0:01:20.5]} 41... Kc4 {[%clk 0:00:04.5]}
42. Rd8 {[%clk 0:01:18.3]} 42... Kb4 {[%clk 0:00:04.6]} 43. Ke3 {[%clk
0:01:18.1]} 43... Kxa5 {[%clk 0:00:04.6]} 44. Rd5 {[%clk 0:01:17.6]} 44... Kb4
{[%clk 0:00:05]} 45. g4 {[%clk 0:01:16.6]} 45... Bc4 {[%clk 0:00:05.3]} 46. Rd8
{[%clk 0:01:16]} 46... Kc3 {[%clk 0:00:05.7]} 47. g5 {[%clk 0:01:13.1]} 47...
hxg5 {[%clk 0:00:05.4]} 48. fxg5 {[%clk 0:01:14]} 48... Ne6 {[%clk 0:00:05.4]}
49. Rc8 {[%clk 0:01:11.3]} 49... Nxg5 {[%clk 0:00:05.7]} 50. Kf4 {[%clk
0:01:11]} 50... d2 {[%clk 0:00:05.4]} 51. Rd8 {[%clk 0:01:10.8]} 51... Ne6+
{[%clk 0:00:06]} 52. Ke3 {[%clk 0:01:09.9]} 52... Nc7 {[%clk 0:00:04]} 53. Kxe4
{[%clk 0:01:07.7]} 53... Nd5 {[%clk 0:00:03.8]} 54. Rd7 {[%clk 0:01:03.7]} 54...
d1=Q {[%clk 0:00:04.1]} 55. Rxf7 {[%clk 0:01:04.6]} 55... Qe2+ {[%clk
0:00:04.4]} 56. Kf5 {[%clk 0:01:03.8]} 56... Ne3+ {[%clk 0:00:04.9]} 57. Kg6
{[%clk 0:01:03.7]} 57... Qg4+ {[%clk 0:00:05.1]} 58. Kh7 {[%clk 0:01:03.4]}
58... Bxf7 {[%clk 0:00:05.7]} 59. Kh8 {[%clk 0:01:03.1]} 59... Qg6 {[%clk
0:00:06.4]} 60. g4 {[%clk 0:01:01.6]} 60... Qh6# {[%clk 0:00:07.3]} 0-1

[Event "Early-Titled-Tuesday-Blitz-March-12-2024"]
[Site "Chess.com"]
[Date "2024.03.12"]
[Round "2"]
[White "Shuvalov"]
[Black "SchmakAttack"]
[Result "0-1"]
[WhiteElo "2523"]
[BlackElo "2823"]
[TimeControl "180+1"]
[EndTime "8:17:42 PDT"]
[Termination "SchmakAttack won by resignation"]

1. d4 {[%clk 0:02:43.2]} 1... Nf6 {[%clk 0:02:58.8]} 2. c4 {[%clk 0:02:42.5]}
2... c5 {[%clk 0:02:59.1]} 3. Nf3 {[%clk 0:02:41.5]} 3... cxd4 {[%clk 0:02:59]}
4. Nxd4 {[%clk 0:02:42.4]} 4... e5 {[%clk 0:02:59.3]} 5. Nc2 {[%clk 0:02:42.2]}
5... d5 {[%clk 0:02:54.7]} 6. cxd5 {[%clk 0:02:41.6]} 6... Qxd5 {[%clk
0:02:52.4]} 7. Qxd5 {[%clk 0:02:41]} 7... Nxd5 {[%clk 0:02:53.3]} 8. e4 {[%clk
0:02:41.3]} 8... Nb4 {[%clk 0:02:42.6]} 9. Nxb4 {[%clk 0:02:40.6]} 9... Bxb4+
{[%clk 0:02:43.5]} 10. Bd2 {[%clk 0:02:41.1]} 10... Nc6 {[%clk 0:02:43.8]} 11.
Bb5 {[%clk 0:02:40.1]} 11... Bxd2+ {[%clk 0:02:40.2]} 12. Nxd2 {[%clk 0:02:41]}
12... Bd7 {[%clk 0:02:37.4]} 13. Nc4 {[%clk 0:02:38.3]} 13... Nd4 {[%clk
0:02:28.5]} 14. Bxd7+ {[%clk 0:02:27.2]} 14... Kxd7 {[%clk 0:02:29.4]} 15. O-O
{[%clk 0:02:14.9]} 15... f6 {[%clk 0:02:24.7]} 16. Rfd1 {[%clk 0:02:08.5]} 16...
Rhc8 {[%clk 0:02:20.8]} 17. Ne3 {[%clk 0:02:07.7]} 17... Ke6 {[%clk 0:02:19]}
18. Kf1 {[%clk 0:02:06.4]} 18... Rc6 {[%clk 0:02:15.9]} 19. Rac1 {[%clk
0:02:05.3]} 19... Rac8 {[%clk 0:02:16.5]} 20. Rxc6+ {[%clk 0:02:05.3]} 20...
Rxc6 {[%clk 0:02:17.4]} 21. f3 {[%clk 0:01:58.6]} 21... b5 {[%clk 0:02:08]} 22.
Kf2 {[%clk 0:01:55.5]} 22... a5 {[%clk 0:02:07.4]} 23. Rd3 {[%clk 0:01:53]}
23... b4 {[%clk 0:01:53.7]} 24. Rd1 {[%clk 0:01:49.1]} 24... a4 {[%clk
0:01:52.4]} 25. Rd2 {[%clk 0:01:44.6]} 25... Rc1 {[%clk 0:01:49.2]} 26. Rd1
{[%clk 0:01:43.6]} 26... Rc5 {[%clk 0:01:32.6]} 27. Rd2 {[%clk 0:01:42.9]} 27...
b3 {[%clk 0:01:28.8]} 28. axb3 {[%clk 0:01:41.1]} 28... axb3 {[%clk 0:01:29.7]}
29. Rd3 {[%clk 0:01:38]} 29... g6 {[%clk 0:01:27.9]} 30. Ke1 {[%clk 0:01:11.5]}
30... f5 {[%clk 0:01:24.6]} 31. exf5+ {[%clk 0:01:08.7]} 31... gxf5 {[%clk
0:01:25.5]} 32. f4 {[%clk 0:01:07.6]} 32... exf4 {[%clk 0:01:20.8]} 33. Rxd4
{[%clk 0:01:03.5]} 33... fxe3 {[%clk 0:01:21.4]} 34. Rd3 {[%clk 0:01:03.8]}
34... f4 {[%clk 0:01:22]} 35. Rxb3 {[%clk 0:01:03.8]} 35... Ke5 {[%clk
0:01:17.1]} 36. Rc3 {[%clk 0:01:00.9]} 36... Rb5 {[%clk 0:01:11.2]} 37. Rc2
{[%clk 0:00:57.6]} 37... Kd4 {[%clk 0:01:08.1]} 38. Ke2 {[%clk 0:00:57.8]} 38...
Rg5 {[%clk 0:00:55.7]} 39. Kf3 {[%clk 0:00:44]} 39... Kd3 {[%clk 0:00:56.1]} 40.
Rc7 {[%clk 0:00:41.1]} 40... Rd5 {[%clk 0:00:47.8]} 41. Re7 {[%clk 0:00:39]}
41... Kd2 {[%clk 0:00:48.2]} 42. b4 {[%clk 0:00:36.5]} 42... Rd3 {[%clk
0:00:46.1]} 43. Kxf4 {[%clk 0:00:27.8]} 43... e2 {[%clk 0:00:46.6]} 44. g4
{[%clk 0:00:26.3]} 44... e1=Q {[%clk 0:00:44.3]} 45. Rxe1 {[%clk 0:00:26.3]}
45... Kxe1 {[%clk 0:00:45.2]} 46. h4 {[%clk 0:00:26.7]} 46... Rd4+ {[%clk
0:00:42.9]} 47. Kg5 {[%clk 0:00:26.9]} 47... Rxb4 {[%clk 0:00:43.5]} 48. h5
{[%clk 0:00:26.5]} 48... Rb6 {[%clk 0:00:26]} 49. Kf5 {[%clk 0:00:26.7]} 49...
h6 {[%clk 0:00:26.4]} 50. g5 {[%clk 0:00:25.3]} 50... Rb5+ {[%clk 0:00:27]} 51.
Kg6 {[%clk 0:00:26]} 51... hxg5 {[%clk 0:00:27.4]} 52. h6 {[%clk 0:00:22.8]}
52... g4 {[%clk 0:00:28]} 53. h7 {[%clk 0:00:22.5]} 53... Rb8 {[%clk 0:00:27.9]}
0-1

[Event "Early-Titled-Tuesday-Blitz-March-12-2024"]
[Site "Chess.com"]
[Date "2024.03.12"]
[Round "2"]
[White "chito89"]
[Black "Flaccidmoves"]
[Result "1-0"]
[WhiteElo "2836"]
[BlackElo "2448"]
[TimeControl "180+1"]
[EndTime "8:17:43 PDT"]
[Termination "chito89 won by resignation"]

1. e4 {[%clk 0:02:37]} 1... g6 {[%clk 0:02:58.5]} 2. d4 {[%clk 0:02:36.7]} 2...
Bg7 {[%clk 0:02:58.7]} 3. Nf3 {[%clk 0:02:37.6]} 3... d6 {[%clk 0:02:58.7]} 4.
Bc4 {[%clk 0:02:38]} 4... Nf6 {[%clk 0:02:56]} 5. Qe2 {[%clk 0:02:37.3]} 5...
O-O {[%clk 0:02:52.7]} 6. e5 {[%clk 0:02:33.3]} 6... dxe5 {[%clk 0:02:51.8]} 7.
dxe5 {[%clk 0:02:34.2]} 7... Nd5 {[%clk 0:02:51]} 8. O-O {[%clk 0:02:31.6]} 8...
c6 {[%clk 0:02:37.6]} 9. Rd1 {[%clk 0:02:23.6]} 9... Bg4 {[%clk 0:02:33.2]} 10.
Nbd2 {[%clk 0:02:20.8]} 10... Nd7 {[%clk 0:02:28.5]} 11. h3 {[%clk 0:02:17.3]}
11... Bxf3 {[%clk 0:02:27.9]} 12. Nxf3 {[%clk 0:02:18.2]} 12... e6 {[%clk
0:02:22.8]} 13. c3 {[%clk 0:01:58.2]} 13... Qc7 {[%clk 0:02:21.2]} 14. Re1
{[%clk 0:01:58.2]} 14... b5 {[%clk 0:02:07.4]} 15. Bd3 {[%clk 0:01:58]} 15... a5
{[%clk 0:02:01.7]} 16. h4 {[%clk 0:01:57.6]} 16... Nc5 {[%clk 0:01:55.5]} 17.
Bc2 {[%clk 0:01:53.7]} 17... a4 {[%clk 0:01:45]} 18. Bd2 {[%clk 0:01:46]} 18...
Nb6 {[%clk 0:01:34.1]} 19. Rad1 {[%clk 0:01:44.9]} 19... Nc4 {[%clk 0:01:33.5]}
20. Bc1 {[%clk 0:01:37.9]} 20... Rfd8 {[%clk 0:01:29.1]} 21. Rxd8+ {[%clk
0:01:35.8]} 21... Rxd8 {[%clk 0:01:28.8]} 22. h5 {[%clk 0:01:34.2]} 22... Rd5
{[%clk 0:01:21.4]} 23. h6 {[%clk 0:01:14.2]} 23... Bh8 {[%clk 0:01:11.4]} 24. b3
{[%clk 0:00:58.9]} 24... axb3 {[%clk 0:01:11]} 25. axb3 {[%clk 0:00:59.8]} 25...
Nxe5 {[%clk 0:01:11.3]} 26. Nd4 {[%clk 0:00:59.8]} 26... b4 {[%clk 0:00:31.5]}
27. cxb4 {[%clk 0:00:53.9]} 27... Rxd4 {[%clk 0:00:31.5]} 28. bxc5 {[%clk
0:00:53.8]} 28... Rd5 {[%clk 0:00:28]} 29. b4 {[%clk 0:00:50.2]} 29... Nd7
{[%clk 0:00:21.2]} 30. Be4 {[%clk 0:00:41.6]} 30... Rh5 {[%clk 0:00:17.2]} 31.
g3 {[%clk 0:00:42]} 31... Bd4 {[%clk 0:00:16]} 32. Kg2 {[%clk 0:00:40.7]} 32...
e5 {[%clk 0:00:13.3]} 33. g4 {[%clk 0:00:33.4]} 33... Rh4 {[%clk 0:00:10.4]} 34.
Bg5 {[%clk 0:00:34]} 34... f5 {[%clk 0:00:06.6]} 35. gxf5 {[%clk 0:00:17.3]}
35... Rxe4 {[%clk 0:00:07.5]} 36. Qxe4 {[%clk 0:00:16.4]} 36... Nf8 {[%clk
0:00:08.3]} 37. f4 {[%clk 0:00:11.4]} 37... Qf7 {[%clk 0:00:07.5]} 38. fxe5
{[%clk 0:00:11.1]} 38... Bc3 {[%clk 0:00:07.1]} 39. e6 {[%clk 0:00:10.3]} 39...
Qxf5 {[%clk 0:00:07.4]} 40. Qxf5 {[%clk 0:00:10.4]} 40... gxf5 {[%clk
0:00:08.3]} 41. e7 {[%clk 0:00:10.4]} 1-0

[Event "Early-Titled-Tuesday-Blitz-March-12-2024"]
[Site "Chess.com"]
[Date "2024.03.12"]
[Round "2"]
[White "Rainbow2014"]
[Black "Mops_2004"]
[Result "0-1"]
[WhiteElo "2443"]
[BlackElo "2835"]
[TimeControl "180+1"]
[EndTime "8:17:46 PDT"]
[Termination "Mops_2004 won on time"]

1. e4 {[%clk 0:03:00.9]} 1... g6 {[%clk 0:03:00.2]} 2. d4 {[%clk 0:03:00.8]}
2... Bg7 {[%clk 0:03:00.6]} 3. Nc3 {[%clk 0:03:01.2]} 3... d6 {[%clk 0:03:01.1]}
4. f4 {[%clk 0:03:01.6]} 4... Nf6 {[%clk 0:03:00.3]} 5. Nf3 {[%clk 0:03:02]}
5... c5 {[%clk 0:03:00.8]} 6. d5 {[%clk 0:03:01.7]} 6... O-O {[%clk 0:03:00.6]}
7. Bd3 {[%clk 0:02:58]} 7... b5 {[%clk 0:02:57.4]} 8. Nxb5 {[%clk 0:02:53.8]}
8... c4 {[%clk 0:02:45.8]} 9. Bxc4 {[%clk 0:02:52.9]} 9... Nxe4 {[%clk
0:02:41.4]} 10. Bd3 {[%clk 0:02:45.7]} 10... Qa5+ {[%clk 0:01:58.3]} 11. c3
{[%clk 0:02:43.2]} 11... Nf6 {[%clk 0:01:58.3]} 12. O-O {[%clk 0:02:32.7]} 12...
Nxd5 {[%clk 0:01:53.2]} 13. Be4 {[%clk 0:02:17.3]} 13... Bb7 {[%clk 0:01:44.8]}
14. Bxd5 {[%clk 0:02:05.5]} 14... Qxb5 {[%clk 0:01:43.6]} 15. Bxb7 {[%clk
0:01:59]} 15... Qxb7 {[%clk 0:01:44.5]} 16. f5 {[%clk 0:01:42.5]} 16... gxf5
{[%clk 0:01:27.5]} 17. Nd4 {[%clk 0:01:28.3]} 17... e6 {[%clk 0:01:25.1]} 18.
Qh5 {[%clk 0:01:27.1]} 18... Qe4 {[%clk 0:00:52.5]} 19. Bf4 {[%clk 0:01:15.6]}
19... Nd7 {[%clk 0:00:29.3]} 20. Rae1 {[%clk 0:01:10.9]} 20... Qd5 {[%clk
0:00:23.1]} 21. Bh6 {[%clk 0:01:01.3]} 21... Bxh6 {[%clk 0:00:22.9]} 22. Qxh6
{[%clk 0:01:01.4]} 22... Kh8 {[%clk 0:00:23.4]} 23. Rd1 {[%clk 0:00:23.9]} 23...
Rg8 {[%clk 0:00:22.2]} 24. Nf3 {[%clk 0:00:23.9]} 24... Qc5+ {[%clk 0:00:22]}
25. Kh1 {[%clk 0:00:24.4]} 25... Rg6 {[%clk 0:00:21.8]} 26. Qh4 {[%clk
0:00:23.4]} 26... Rag8 {[%clk 0:00:20.8]} 27. Rd2 {[%clk 0:00:23.7]} 27... Nf6
{[%clk 0:00:20.4]} 28. Nd4 {[%clk 0:00:17.3]} 28... Ne4 {[%clk 0:00:18.3]} 29.
Re2 {[%clk 0:00:17.4]} 29... Qe5 {[%clk 0:00:14.9]} 30. Qh5 {[%clk 0:00:15.4]}
30... Qg7 {[%clk 0:00:14.8]} 31. Qh3 {[%clk 0:00:13.4]} 31... Rh6 {[%clk
0:00:15]} 32. Qf3 {[%clk 0:00:13.5]} 32... Ng3+ {[%clk 0:00:15]} 33. Kg1 {[%clk
0:00:13.5]} 33... Nxf1 {[%clk 0:00:14.6]} 34. Qxf1 {[%clk 0:00:13.2]} 34... Rg6
{[%clk 0:00:13.6]} 35. h3 {[%clk 0:00:12]} 35... d5 {[%clk 0:00:13.5]} 36. Kh1
{[%clk 0:00:12.2]} 36... Qh6 {[%clk 0:00:12.9]} 37. Nf3 {[%clk 0:00:12.3]} 37...
Qf4 {[%clk 0:00:12.6]} 38. Qf2 {[%clk 0:00:10.7]} 38... Rxg2 {[%clk 0:00:12.2]}
39. Qd4+ {[%clk 0:00:09.2]} 39... Qxd4 {[%clk 0:00:11.8]} 40. cxd4 {[%clk
0:00:09.8]} 40... Rxe2 {[%clk 0:00:11.8]} 0-1

[Event "Early-Titled-Tuesday-Blitz-March-12-2024"]
[Site "Chess.com"]
[Date "2024.03.12"]
[Round "2"]
[White "Seochesspie"]
[Black "Russian_berezka"]
[Result "1-0"]
[WhiteElo "2865"]
[BlackElo "2581"]
[TimeControl "180+1"]
[EndTime "8:17:47 PDT"]
[Termination "Seochesspie won by checkmate"]

1. d4 {[%clk 0:03:00.9]} 1... Nf6 {[%clk 0:02:59]} 2. Nf3 {[%clk 0:03:01.4]}
2... d5 {[%clk 0:02:57]} 3. Bg5 {[%clk 0:03:00]} 3... Ne4 {[%clk 0:02:56.1]} 4.
Bf4 {[%clk 0:02:58.1]} 4... c5 {[%clk 0:02:52.8]} 5. e3 {[%clk 0:02:50.9]} 5...
Qb6 {[%clk 0:02:48.7]} 6. Qc1 {[%clk 0:02:49]} 6... Nc6 {[%clk 0:02:44]} 7. c3
{[%clk 0:02:49]} 7... f6 {[%clk 0:02:39.6]} 8. h3 {[%clk 0:02:47.6]} 8... g5
{[%clk 0:02:18.2]} 9. Bh2 {[%clk 0:02:46.4]} 9... Bf5 {[%clk 0:02:17]} 10. Nbd2
{[%clk 0:02:44.8]} 10... e6 {[%clk 0:02:13.1]} 11. Be2 {[%clk 0:02:41.8]} 11...
h5 {[%clk 0:02:12.2]} 12. O-O {[%clk 0:02:38.1]} 12... Rc8 {[%clk 0:01:58.2]}
13. Nxe4 {[%clk 0:02:32.9]} 13... dxe4 {[%clk 0:01:54.9]} 14. Nd2 {[%clk
0:02:32.3]} 14... g4 {[%clk 0:01:41.7]} 15. h4 {[%clk 0:02:22.5]} 15... e5
{[%clk 0:01:32.4]} 16. Nc4 {[%clk 0:02:18.7]} 16... Qc7 {[%clk 0:01:30.1]} 17.
dxe5 {[%clk 0:02:13]} 17... fxe5 {[%clk 0:01:24.8]} 18. a4 {[%clk 0:01:49.5]}
18... Bg7 {[%clk 0:01:21.7]} 19. Rd1 {[%clk 0:01:48.7]} 19... Rd8 {[%clk
0:01:13.7]} 20. Qc2 {[%clk 0:01:46.1]} 20... O-O {[%clk 0:01:11.4]} 21. Bg3
{[%clk 0:01:42.5]} 21... b6 {[%clk 0:01:10.1]} 22. Nd2 {[%clk 0:01:37.9]} 22...
Qb7 {[%clk 0:00:52.5]} 23. Nxe4 {[%clk 0:01:26.9]} 23... Nd4 {[%clk 0:00:49.4]}
24. cxd4 {[%clk 0:01:14.8]} 24... Bxe4 {[%clk 0:00:49.3]} 25. Qb3+ {[%clk
0:01:12.8]} 25... Kh7 {[%clk 0:00:44.6]} 26. dxe5 {[%clk 0:01:00.6]} 26... Bxg2
{[%clk 0:00:41]} 27. Rxd8 {[%clk 0:00:52.8]} 27... Rxd8 {[%clk 0:00:35.8]} 28.
Qe6 {[%clk 0:00:50.5]} 28... Rf8 {[%clk 0:00:22.9]} 29. Bd3+ {[%clk 0:00:45.3]}
29... Be4 {[%clk 0:00:18.8]} 30. Bxe4+ {[%clk 0:00:45.4]} 30... Qxe4 {[%clk
0:00:19.7]} 31. Rd1 {[%clk 0:00:41]} 31... Rf3 {[%clk 0:00:17.1]} 32. Qd5 {[%clk
0:00:30.4]} 32... Rxg3+ {[%clk 0:00:08]} 33. fxg3 {[%clk 0:00:30.4]} 33... Qxe3+
{[%clk 0:00:08.8]} 34. Kh1 {[%clk 0:00:21.8]} 34... Qxg3 {[%clk 0:00:07.6]} 35.
Qe4+ {[%clk 0:00:20]} 35... Kg8 {[%clk 0:00:04.2]} 36. Rd8+ {[%clk 0:00:19.8]}
36... Kf7 {[%clk 0:00:03.7]} 37. Qf5+ {[%clk 0:00:19.8]} 37... Ke7 {[%clk
0:00:02.6]} 38. Qd7# {[%clk 0:00:19.4]} 1-0

[Event "Early-Titled-Tuesday-Blitz-March-12-2024"]
[Site "Chess.com"]
[Date "2024.03.12"]
[Round "2"]
[White "toninhojit"]
[Black "Flawless_Fighter"]
[Result "0-1"]
[WhiteElo "2537"]
[BlackElo "2838"]
[TimeControl "180+1"]
[EndTime "8:17:49 PDT"]
[Termination "Flawless_Fighter won by resignation"]

1. d4 {[%clk 0:03:00.9]} 1... Nf6 {[%clk 0:02:55.5]} 2. c4 {[%clk 0:03:01.3]}
2... e6 {[%clk 0:02:55.5]} 3. Nf3 {[%clk 0:02:59.9]} 3... d5 {[%clk 0:02:56.4]}
4. Nc3 {[%clk 0:02:59.1]} 4... c5 {[%clk 0:02:55.3]} 5. e3 {[%clk 0:02:58.5]}
5... Nc6 {[%clk 0:02:53.4]} 6. a3 {[%clk 0:02:58.3]} 6... dxc4 {[%clk
0:02:49.3]} 7. Bxc4 {[%clk 0:02:57.3]} 7... a6 {[%clk 0:02:49.9]} 8. O-O {[%clk
0:02:56.6]} 8... b5 {[%clk 0:02:48.2]} 9. Bd3 {[%clk 0:02:56.8]} 9... Bb7 {[%clk
0:02:47.8]} 10. Qe2 {[%clk 0:02:56.8]} 10... Be7 {[%clk 0:02:46.3]} 11. dxc5
{[%clk 0:02:51.6]} 11... Bxc5 {[%clk 0:02:45.8]} 12. Rd1 {[%clk 0:02:51.8]}
12... Qe7 {[%clk 0:02:44.5]} 13. b4 {[%clk 0:02:51.3]} 13... Bd6 {[%clk
0:02:42.9]} 14. Bb2 {[%clk 0:02:51.8]} 14... O-O {[%clk 0:02:42.7]} 15. Rac1
{[%clk 0:02:50.9]} 15... Ne5 {[%clk 0:02:40.8]} 16. Nxe5 {[%clk 0:02:46.7]}
16... Bxe5 {[%clk 0:02:41.7]} 17. f4 {[%clk 0:02:41]} 17... Bxc3 {[%clk
0:02:36.4]} 18. Bxc3 {[%clk 0:02:39.1]} 18... Ne4 {[%clk 0:02:15.9]} 19. Bd4
{[%clk 0:02:37.5]} 19... Rfd8 {[%clk 0:02:12.2]} 20. Rc2 {[%clk 0:02:28.7]}
20... Rac8 {[%clk 0:02:10.7]} 21. Rdc1 {[%clk 0:02:29]} 21... Rxc2 {[%clk
0:02:10.3]} 22. Rxc2 {[%clk 0:02:22.2]} 22... h6 {[%clk 0:02:09.4]} 23. Qd1
{[%clk 0:02:19.5]} 23... f6 {[%clk 0:01:48.8]} 24. Qc1 {[%clk 0:02:17.2]} 24...
Rd7 {[%clk 0:01:43.5]} 25. Be2 {[%clk 0:01:49.2]} 25... Kh7 {[%clk 0:01:34.2]}
26. Bf3 {[%clk 0:01:48.3]} 26... Bd5 {[%clk 0:01:33.6]} 27. Rc8 {[%clk
0:01:41.5]} 27... Nd6 {[%clk 0:01:32.9]} 28. Bc5 {[%clk 0:01:33.4]} 28... Bxf3
{[%clk 0:01:30.8]} 29. gxf3 {[%clk 0:01:34.3]} 29... Qf7 {[%clk 0:01:30.7]} 30.
Qc2+ {[%clk 0:01:28.4]} 30... f5 {[%clk 0:01:29.9]} 31. Rc6 {[%clk 0:01:14]}
31... Nc4 {[%clk 0:01:26]} 32. Bd4 {[%clk 0:01:14.7]} 32... Qg6+ {[%clk
0:01:23.3]} 33. Qg2 {[%clk 0:01:14.2]} 33... Qe8 {[%clk 0:00:58.3]} 34. Rxa6
{[%clk 0:01:00.3]} 34... e5 {[%clk 0:00:33.3]} 35. fxe5 {[%clk 0:00:54.4]} 35...
Nxe5 {[%clk 0:00:30.5]} 36. h3 {[%clk 0:00:34.4]} 36... Ng6 {[%clk 0:00:13.6]}
37. Kh1 {[%clk 0:00:16.7]} 37... f4 {[%clk 0:00:13.2]} 38. Qe2 {[%clk
0:00:09.6]} 38... Rxd4 {[%clk 0:00:12.2]} 39. Qc2 {[%clk 0:00:06.2]} 39... fxe3
{[%clk 0:00:11.3]} 0-1